[Event "Austria Championship Blitz 2024"]
[Site "Innsbruck"]
[Date "2024.06.01"]
[Round "5.4"]
[White "Balint, Peter"]
[Black "Kranzl, Peter"]
[Result "1-0"]
[ECO "B11"]
[WhiteElo "2343"]
[BlackElo "2157"]
[Annotator "RC"]
[PlyCount "51"]
[EventDate "2024.06.01"]
[EventType "swiss"]
[EventCountry "AUT"]
[SourceTitle "playchess.com"]
[Source "ChessBase"]
[SourceQuality "1"]
[TimeControl "180+2"]

1. e4 {[%emt 0:00:02]} c6 {[%emt 0:00:01]} 2. Nf3 {[%emt 0:00:01]} d5 {[%emt 0:00:01]} 3. Nc3 {[%emt 0:00:00]} Bg4 {[%emt 0:00:02]} 4. h3 {[%emt 0:00:01]} Bxf3 {[%emt 0:00:01]} 5. Qxf3 {[%emt 0:00:01]} e6 {[%emt 0:00:02]} 6. g3 {[%emt 0:00:01]} Nf6 {[%emt 0:00:02]} 7. Bg2 {[%emt 0:00:01]} Nbd7 {[%emt 0:00:01]} 8. Qe3 {[%emt 0:00:04]} dxe4 {[%emt 0:00:07]} 9. Nxe4 {[%emt 0:00:02]} Nxe4 {[%emt 0:00:02]} 10. Qxe4 {[%emt 0:00:03]} Nf6 {[%emt 0:00:03]} 11. Qe2 {[%emt 0:00:02]} Be7 {[%emt 0:00:04]} 12. O-O {[%emt 0:00:02]} O-O {[%emt 0:00:02]} 13. Rd1 {[%emt 0:00:01]} Qc7 {[%emt 0:00:07]} 14. d4 {[%emt 0:00:02]} Rad8 {[%emt 0:00:07]} 15. c4 {[%emt 0:00:12]} h6 {[%emt 0:00:05]} 16. b3 {[%emt 0:00:02]} Qa5 {[%emt 0:00:07]} 17. a3 {[%emt 0:00:23]} Rfe8 {[%emt 0:00:02]} 18. Bb2 {[%emt 0:00:02]} Rd7 {[%emt 0:00:26]} 19. h4 {[%emt 0:00:17]} Qf5 {[%emt 0:00:07]} 20. Bf3 {[%emt 0:00:14]} h5 {[%emt 0:00:06]} 21. Kg2 {[%emt 0:00:03]} Red8 {[%emt 0:00:01]} 22. Rac1 {[%emt 0:00:33]} a6 {[%emt 0:00:03]} 23. Rd3 {[%emt 0:00:48]} g6 {[%emt 0:00:03]} 24. Rcd1 {[%emt 0:00:01]} Bf8 {[%emt 0:00:07]} 25. Re3 {[%emt 0:00:06]} Bg7 {[%emt 0:00:04]} 26. Re5 {[%emt 0:00:04]} 1-0

[Event "Austria Championship Blitz 2024"]
[Site "Innsbruck"]
[Date "2024.06.01"]
[Round "5.5"]
[White "Horvath, Dominik"]
[Black "Cafasso, Elia"]
[Result "1-0"]
[ECO "D37"]
[WhiteElo "2554"]
[BlackElo "2178"]
[Annotator "RC"]
[PlyCount "65"]
[EventDate "2024.06.01"]
[EventType "swiss"]
[EventCountry "AUT"]
[SourceTitle "playchess.com"]
[Source "ChessBase"]
[SourceQuality "1"]
[TimeControl "180+2"]

1. Nf3 {[%emt 0:00:01]} d5 {[%emt 0:00:01]} 2. d4 {[%emt 0:03:05]} Nf6 {[%emt 0:00:02]} 3. c4 {[%emt 0:00:00]} e6 {[%emt 0:00:00]} 4. Nc3 {[%emt 0:00:00]} Be7 {[%emt 0:00:01]} 5. Bf4 {[%emt 0:00:00]} O-O {[%emt 0:00:03]} 6. e3 {[%emt 0:00:00]} c5 {[%emt 0:00:03]} 7. dxc5 {[%emt 0:00:00]} Bxc5 {[%emt 0:00:03]} 8. cxd5 {[%emt 0:00:00]} exd5 {[%emt 0:00:02]} 9. Rc1 {[%emt 0:00:00]} Bb6 {[%emt 0:00:12]} 10. Bg5 {[%emt 0:00:00]} Be6 {[%emt 0:00:10]} 11. Be2 {[%emt 0:00:00]} Nc6 {[%emt 0:00:02]} 12. O-O {[%emt 0:00:00]} a6 {[%emt 0:00:06]} 13. Na4 {[%emt 0:00:00]} Bc7 {[%emt 0:00:27]} 14. Nc5 {[%emt 0:00:00]} Rb8 {[%emt 0:00:11]} 15. Nxa6 {[%emt 0:00:00]} bxa6 {[%emt 0:00:04]} 16. Rxc6 {[%emt 0:00:00]} Rxb2 {[%emt 0:00:12]} 17. Rxa6 {[%emt 0:00:00]} h6 {[%emt 0:00:06]} 18. Bh4 {[%emt 0:00:00]} g5 {[%emt 0:00:09]} 19. Bg3 {[%emt 0:00:00]} Ne4 {[%emt 0:00:03]} 20. Bd3 {[%emt 0:00:00]} Bxg3 {[%emt 0:00:27]} 21. hxg3 {[%emt 0:00:00]} Nc5 {[%emt 0:00:01]} 22. Rc6 {[%emt 0:00:00]} Nxd3 {[%emt 0:00:02]} 23. Qxd3 {[%emt 0:00:00]} Rxa2 {[%emt 0:00:02]} 24. Nd4 {[%emt 0:00:00]} Qd7 {[%emt 0:00:12]} 25. Rfc1 {[%emt 0:00:00]} Ra7 {[%emt 0:00:04]} 26. Nxe6 {[%emt 0:00:00]} fxe6 {[%emt 0:00:02]} 27. Qg6+ {[%emt 0:00:00]} Qg7 {[%emt 0:00:03]} 28. Qxe6+ {[%emt 0:00:00]} Qf7 {[%emt 0:00:02]} 29. Rd1 {[%emt 0:00:00]} Ra2 {[%emt 0:00:14]} 30. f3 {[%emt 0:00:30]} Re8 {[%emt 0:00:01]} 31. Qxh6 {[%emt 0:00:11]} Qh7 {[%emt 0:00:25]} 32. Qxg5+ {[%emt 0:00:03]} Kh8 {[%emt 0:00:01]} 33. Rh6 {[%emt 0:00:01]} 1-0

[Event "Austria Championship Blitz 2024"]
[Site "Innsbruck"]
[Date "2024.06.01"]
[Round "5.6"]
[White "Kilgus, Georg"]
[Black "Myagmarsuren, Mandukhai"]
[Result "0-1"]
[ECO "D02"]
[WhiteElo "2362"]
[BlackElo "2092"]
[Annotator "RC"]
[PlyCount "46"]
[EventDate "2024.06.01"]
[EventType "swiss"]
[EventCountry "AUT"]
[SourceTitle "playchess.com"]
[Source "ChessBase"]
[SourceQuality "1"]
[TimeControl "180+2"]

1. d4 {[%emt 0:00:01]} d5 {[%emt 0:00:01]} 2. Nf3 {[%emt 0:00:01]} Nf6 {[%emt 0:00:01]} 3. Bf4 {[%emt 0:00:01]} c5 {[%emt 0:00:02]} 4. e3 {[%emt 0:00:01]} Nc6 {[%emt 0:00:01]} 5. Nbd2 {[%emt 0:00:00]} Bg4 {[%emt 0:00:07]} 6. c3 {[%emt 0:00:08]} e6 {[%emt 0:00:02]} 7. Qb3 {[%emt 0:00:04]} Qb6 {[%emt 0:00:15]} 8. Qxb6 {[%emt 0:00:36]} axb6 {[%emt 0:00:01]} 9. Ne5 {[%emt 0:00:05]} Bf5 {[%emt 0:00:14]} 10. Bb5 {[%emt 0:00:04]} Rc8 {[%emt 0:00:33]} 11. h3 {[%emt 0:00:33]} Nd7 {[%emt 0:00:15]} 12. Nxc6 {[%emt 0:00:23]} bxc6 {[%emt 0:00:02]} 13. Ba6 {[%emt 0:00:01]} Rd8 {[%emt 0:00:12]} 14. Bb7 {[%emt 0:00:01]} cxd4 {[%emt 0:00:04]} 15. exd4 {[%emt 0:00:12]} e5 {[%emt 0:00:12]} 16. Bxe5 {[%emt 0:00:24]} Nxe5 {[%emt 0:00:03]} 17. dxe5 {[%emt 0:00:01]} Bd7 {[%emt 0:00:12]} 18. O-O {[%emt 0:00:28]} Rb8 {[%emt 0:00:09]} 19. Ba6 {[%emt 0:00:01]} b5 {[%emt 0:01:14]} 20. a4 bxa4 {[%emt 0:00:00]} 21. Rxa4 {[%emt 0:00:31]} Rxb2 {[%emt 0:00:00]} 22. Nf3 {[%emt 0:00:00]} Bc5 {[%emt 0:00:00]} 23. Bd3 {[%emt 0:00:12]} Ke7 {[%emt 0:00:08]} 0-1

[Event "Austria Championship Blitz 2024"]
[Site "Innsbruck"]
[Date "2024.06.01"]
[Round "5.7"]
[White "Kruckenhauser, Arthur"]
[Black "Schranzhofer, Marco"]
[Result "1-0"]
[ECO "D02"]
[WhiteElo "2340"]
[BlackElo "1908"]
[Annotator "RC"]
[PlyCount "121"]
[EventDate "2024.06.01"]
[EventType "swiss"]
[EventCountry "AUT"]
[SourceTitle "playchess.com"]
[Source "ChessBase"]
[SourceQuality "1"]
[TimeControl "180+2"]

1. d4 {[%emt 0:00:01]} d5 {[%emt 0:00:01]} 2. Nf3 {[%emt 0:00:01]} Nf6 {[%emt 0:00:01]} 3. c3 {[%emt 0:00:00]} a6 {[%emt 0:00:07]} 4. Bg5 {[%emt 0:00:12]} h6 {[%emt 0:00:05]} 5. Bh4 {[%emt 0:00:01]} e6 {[%emt 0:00:16]} 6. Nbd2 {[%emt 0:00:01]} Be7 {[%emt 0:00:01]} 7. e3 {[%emt 0:00:00]} Nbd7 {[%emt 0:00:11]} 8. Bd3 {[%emt 0:00:01]} c5 {[%emt 0:00:03]} 9. O-O {[%emt 0:00:02]} O-O {[%emt 0:00:16]} 10. Ne5 {[%emt 0:00:02]} Nxe5 {[%emt 0:00:03]} 11. dxe5 {[%emt 0:00:01]} Nd7 {[%emt 0:00:01]} 12. Bxe7 {[%emt 0:00:02]} Qxe7 {[%emt 0:00:01]} 13. f4 {[%emt 0:00:00]} f6 {[%emt 0:00:17]} 14. exf6 {[%emt 0:00:01]} Nxf6 {[%emt 0:00:02]} 15. Nf3 {[%emt 0:00:01]} Nd7 {[%emt 0:00:18]} 16. Bc2 {[%emt 0:00:01]} Qf6 {[%emt 0:00:17]} 17. Qd3 {[%emt 0:00:14]} g6 {[%emt 0:00:01]} 18. Qxg6+ {[%emt 0:00:03]} Qxg6 {[%emt 0:00:01]} 19. Bxg6 {[%emt 0:00:01]} Kg7 {[%emt 0:00:13]} 20. Bc2 {[%emt 0:00:01]} Nb6 {[%emt 0:00:08]} 21. b3 {[%emt 0:00:05]} Bd7 {[%emt 0:00:02]} 22. g3 {[%emt 0:00:01]} Bb5 {[%emt 0:00:04]} 23. Rfe1 {[%emt 0:00:04]} Rac8 {[%emt 0:00:15]} 24. Rad1 {[%emt 0:00:03]} Bc6 {[%emt 0:00:11]} 25. Ne5 {[%emt 0:00:03]} Nd7 {[%emt 0:00:09]} 26. Nxd7 {[%emt 0:00:20]} Bxd7 {[%emt 0:00:01]} 27. e4 {[%emt 0:00:01]} Bc6 {[%emt 0:00:01]} 28. exd5 {[%emt 0:00:01]} exd5 {[%emt 0:00:00]} 29. Kf2 {[%emt 0:00:16]} Rfe8 {[%emt 0:00:02]} 30. Rxe8 {[%emt 0:00:02]} Rxe8 {[%emt 0:00:02]} 31. Re1 {[%emt 0:00:01]} Rxe1 32. Kxe1 {[%emt 0:00:00]} Kf6 {[%emt 0:00:02]} 33. Kf2 {[%emt 0:00:01]} b6 {[%emt 0:00:03]} 34. Ke3 {[%emt 0:00:02]} Bd7 {[%emt 0:00:09]} 35. a3 {[%emt 0:00:04]} Be6 {[%emt 0:00:01]} 36. b4 {[%emt 0:00:05]} Bd7 {[%emt 0:00:04]} 37. Bd1 {[%emt 0:00:16]} Bc6 {[%emt 0:00:07]} 38. g4 {[%emt 0:00:04]} a5 {[%emt 0:00:04]} 39. bxa5 {[%emt 0:00:02]} bxa5 {[%emt 0:00:01]} 40. h4 {[%emt 0:00:01]} Bd7 {[%emt 0:00:20]} 41. g5+ {[%emt 0:00:01]} hxg5 {[%emt 0:00:01]} 42. hxg5+ {[%emt 0:00:04]} Kg6 {[%emt 0:00:04]} 43. Bc2+ {[%emt 0:00:08]} Bf5 {[%emt 0:00:08]} 44. Ba4 {[%emt 0:00:14]} Be6 {[%emt 0:00:03]} 45. Be8+ {[%emt 0:00:19]} Kf5 {[%emt 0:00:06]} 46. Bh5 {[%emt 0:00:44]} d4+ {[%emt 0:00:06]} 47. cxd4 {[%emt 0:00:01]} cxd4+ {[%emt 0:00:01]} 48. Kf3 {[%emt 0:00:01]} Bd5+ {[%emt 0:00:03]} 49. Kg3 {[%emt 0:00:01]} d3 {[%emt 0:00:01]} 50. Bg4+ {[%emt 0:00:05]} Kg6 {[%emt 0:00:02]} 51. Kf2 {[%emt 0:00:04]} Be4 {[%emt 0:00:05]} 52. Ke3 {[%emt 0:00:02]} Bd5 {[%emt 0:00:02]} 53. Kxd3 {[%emt 0:00:02]} Bb3 {[%emt 0:00:00]} 54. Ke3 {[%emt 0:00:10]} Ba4 {[%emt 0:00:02]} 55. Kf2 {[%emt 0:00:01]} Bb3 {[%emt 0:00:00]} 56. Kg3 {[%emt 0:00:01]} Bc4 {[%emt 0:00:01]} 57. Kh4 {[%emt 0:00:01]} Bd3 {[%emt 0:00:02]} 58. f5+ {[%emt 0:00:01]} Kg7 {[%emt 0:00:03]} 59. Kg3 {[%emt 0:00:02]} Bc2 {[%emt 0:00:01]} 60. Kf4 {[%emt 0:00:02]} a4 {[%emt 0:00:00]} 61. Bh5 {[%emt 0:00:04]} 1-0

[Event "Austria Championship Blitz 2024"]
[Site "Innsbruck"]
[Date "2024.06.01"]
[Round "5.8"]
[White "Kienboeck, Benjamin"]
[Black "Binder, Moriz"]
[Result "0-1"]
[ECO "C95"]
[WhiteElo "2187"]
[BlackElo "2210"]
[Annotator "RC"]
[PlyCount "118"]
[EventDate "2024.06.01"]
[EventType "swiss"]
[EventCountry "AUT"]
[SourceTitle "playchess.com"]
[Source "ChessBase"]
[SourceQuality "1"]
[TimeControl "180+2"]

1. e4 {[%emt 0:00:02]} e5 {[%emt 0:00:01]} 2. Nf3 {[%emt 0:03:04]} Nc6 3. Bb5 {[%emt 0:00:00]} a6 {[%emt 0:00:01]} 4. Ba4 {[%emt 0:00:00]} Nf6 {[%emt 0:00:01]} 5. O-O {[%emt 0:00:00]} Be7 {[%emt 0:00:01]} 6. Re1 {[%emt 0:00:00]} b5 {[%emt 0:00:00]} 7. Bb3 {[%emt 0:00:00]} d6 {[%emt 0:00:01]} 8. c3 {[%emt 0:00:00]} O-O {[%emt 0:00:01]} 9. h3 {[%emt 0:00:00]} Nb8 {[%emt 0:00:01]} 10. d4 {[%emt 0:00:00]} Nbd7 {[%emt 0:00:01]} 11. Nbd2 {[%emt 0:00:00]} Bb7 {[%emt 0:00:00]} 12. a4 {[%emt 0:00:00]} Re8 {[%emt 0:00:13]} 13. Bc2 {[%emt 0:00:00]} Bf8 {[%emt 0:00:02]} 14. b4 {[%emt 0:00:00]} d5 {[%emt 0:01:06]} 15. dxe5 {[%emt 0:00:00]} Nxe4 {[%emt 0:00:01]} 16. Nxe4 {[%emt 0:00:00]} dxe4 {[%emt 0:00:01]} 17. Bxe4 {[%emt 0:00:00]} Bxe4 {[%emt 0:00:02]} 18. Rxe4 {[%emt 0:00:00]} Nxe5 {[%emt 0:00:07]} 19. Qxd8 {[%emt 0:00:00]} Nxf3+ {[%emt 0:00:02]} 20. gxf3 {[%emt 0:00:00]} Raxd8 {[%emt 0:00:04]} 21. Rxe8 {[%emt 0:00:00]} Rxe8 {[%emt 0:00:01]} 22. Bf4 {[%emt 0:00:00]} c6 {[%emt 0:00:31]} 23. axb5 {[%emt 0:00:00]} axb5 {[%emt 0:00:00]} 24. Ra6 {[%emt 0:00:00]} Re6 {[%emt 0:00:02]} 25. Ra8 {[%emt 0:00:00]} g5 {[%emt 0:00:22]} 26. Be3 {[%emt 0:00:00]} Kg7 {[%emt 0:00:01]} 27. Kf1 {[%emt 0:00:00]} Be7 {[%emt 0:00:02]} 28. Ke2 {[%emt 0:00:00]} Bf6 {[%emt 0:00:10]} 29. Kd3 {[%emt 0:00:00]} Rd6+ {[%emt 0:00:01]} 30. Bd4 {[%emt 0:00:10]} Kg6 {[%emt 0:00:05]} 31. Ra7 {[%emt 0:00:17]} h5 {[%emt 0:00:07]} 32. Rc7 {[%emt 0:00:06]} Be5 {[%emt 0:00:29]} 33. Rc8 {[%emt 0:00:10]} Kf5 {[%emt 0:00:07]} 34. Ke3 {[%emt 0:00:02]} Bxd4+ {[%emt 0:00:06]} 35. cxd4 {[%emt 0:00:01]} f6 {[%emt 0:00:02]} 36. f4 {[%emt 0:00:07]} Re6+ {[%emt 0:00:05]} 37. Kf3 {[%emt 0:00:03]} g4+ {[%emt 0:00:09]} 38. hxg4+ hxg4+ {[%emt 0:00:01]} 39. Kg3 {[%emt 0:00:02]} Rd6 {[%emt 0:00:01]} 40. d5 {[%emt 0:00:06]} cxd5 {[%emt 0:00:10]} 41. Rc5 {[%emt 0:00:01]} Ke4 {[%emt 0:00:02]} 42. Rxb5 {[%emt 0:00:07]} f5 {[%emt 0:00:02]} 43. Rb8 {[%emt 0:00:04]} d4 {[%emt 0:00:00]} 44. Re8+ {[%emt 0:00:05]} Kd3 {[%emt 0:00:01]} 45. b5 {[%emt 0:00:01]} Rb6 {[%emt 0:00:01]} 46. Re5 {[%emt 0:00:01]} Kc2 {[%emt 0:00:01]} 47. Rxf5 {[%emt 0:00:01]} d3 {[%emt 0:00:01]} 48. Rd5 {[%emt 0:00:03]} d2 {[%emt 0:00:00]} 49. Kxg4 {[%emt 0:00:01]} Rxb5 {[%emt 0:00:01]} 50. Rxd2+ {[%emt 0:00:01]} Kxd2 {[%emt 0:00:01]} 51. f5 {[%emt 0:00:01]} Kd3 {[%emt 0:00:01]} 52. f3 {[%emt 0:00:05]} Kd4 {[%emt 0:00:01]} 53. Kg5 {[%emt 0:00:02]} Ke5 {[%emt 0:00:00]} 54. Kg6 {[%emt 0:00:02]} Rb6+ 55. Kg5 Kd6 {[%emt 0:00:06]} 56. f6 {[%emt 0:00:06]} Ke6 {[%emt 0:00:01]} 57. Kg6 {[%emt 0:00:01]} Rb8 {[%emt 0:00:05]} 58. Kg7 {[%emt 0:00:03]} Rb7+ {[%emt 0:00:03]} 59. Kg6 {[%emt 0:00:00]} Rf7 {[%emt 0:00:00]} 0-1

[Event "Austria Championship Blitz 2024"]
[Site "Innsbruck"]
[Date "2024.06.01"]
[Round "5.9"]
[White "Zanon, Magnus"]
[Black "Neuschmied, Siegfried"]
[Result "1/2-1/2"]
[ECO "D03"]
[WhiteElo "2092"]
[BlackElo "2234"]
[Annotator "RC"]
[PlyCount "117"]
[EventDate "2024.06.01"]
[EventType "swiss"]
[EventCountry "AUT"]
[SourceTitle "playchess.com"]
[Source "ChessBase"]
[SourceQuality "1"]
[TimeControl "180+2"]

1. d4 {[%emt 0:00:02]} Nf6 {[%emt 0:00:01]} 2. Bg5 {[%emt 0:00:01]} d5 {[%emt 0:00:02]} 3. e3 {[%emt 0:00:01]} Nbd7 {[%emt 0:00:05]} 4. Nf3 {[%emt 0:00:02]} h6 {[%emt 0:00:05]} 5. Bf4 {[%emt 0:00:02]} e6 {[%emt 0:00:13]} 6. Nbd2 {[%emt 0:00:03]} Nh5 {[%emt 0:00:10]} 7. Be5 {[%emt 0:00:07]} c6 {[%emt 0:00:44]} 8. Bd3 {[%emt 0:00:12]} Nxe5 {[%emt 0:00:29]} 9. dxe5 {[%emt 0:00:01]} g6 {[%emt 0:00:04]} 10. O-O {[%emt 0:00:11]} Bc5 {[%emt 0:00:18]} 11. Nd4 {[%emt 0:00:10]} Qe7 {[%emt 0:00:07]} 12. c3 {[%emt 0:00:05]} Bb6 {[%emt 0:00:03]} 13. Qc2 {[%emt 0:00:04]} O-O {[%emt 0:00:11]} 14. a4 {[%emt 0:00:11]} a6 {[%emt 0:00:58]} 15. a5 {[%emt 0:00:17]} Bc7 {[%emt 0:00:00]} 16. f4 {[%emt 0:00:01]} Ng7 {[%emt 0:00:00]} 17. Kh1 {[%emt 0:00:03]} Bd7 {[%emt 0:00:00]} 18. Rg1 {[%emt 0:00:01]} c5 {[%emt 0:00:00]} 19. N4f3 {[%emt 0:00:10]} Bc6 {[%emt 0:00:00]} 20. Raf1 {[%emt 0:00:14]} Rac8 {[%emt 0:00:00]} 21. e4 {[%emt 0:00:07]} Bxa5 {[%emt 0:00:00]} 22. exd5 exd5 {[%emt 0:00:00]} 23. f5 {[%emt 0:00:37]} gxf5 24. Bxf5 {[%emt 0:00:01]} Rcd8 {[%emt 0:00:00]} 25. h3 {[%emt 0:00:35]} Bc7 {[%emt 0:00:00]} 26. Re1 {[%emt 0:00:02]} Nxf5 {[%emt 0:00:00]} 27. Qxf5 {[%emt 0:00:36]} Qe6 28. Qf4 {[%emt 0:00:00]} Qg6 {[%emt 0:00:00]} 29. Nh4 {[%emt 0:00:00]} Qg5 {[%emt 0:00:00]} 30. Rgf1 {[%emt 0:00:00]} f6 {[%emt 0:00:32]} 31. Qxg5+ {[%emt 0:00:00]} fxg5 {[%emt 0:00:00]} 32. Ng6 {[%emt 0:00:00]} Rxf1+ {[%emt 0:00:00]} 33. Rxf1 {[%emt 0:00:00]} d4 {[%emt 0:00:00]} 34. Nf3 {[%emt 0:00:04]} d3 {[%emt 0:00:08]} 35. Ne7+ {[%emt 0:00:03]} Kg7 {[%emt 0:00:00]} 36. Nd2 {[%emt 0:00:11]} Bd5 {[%emt 0:00:00]} 37. Nxd5 {[%emt 0:00:00]} Rxd5 {[%emt 0:00:00]} 38. e6 {[%emt 0:00:00]} Bd6 {[%emt 0:00:00]} 39. Nc4 {[%emt 0:00:00]} Kg6 {[%emt 0:00:00]} 40. g4 {[%emt 0:00:00]} b5 {[%emt 0:00:00]} 41. Nxd6 {[%emt 0:00:05]} Rxd6 {[%emt 0:00:00]} 42. Re1 {[%emt 0:00:01]} d2 {[%emt 0:00:16]} 43. Rd1 {[%emt 0:00:01]} Kf6 {[%emt 0:00:00]} 44. Kg2 {[%emt 0:00:01]} Kxe6 {[%emt 0:00:00]} 45. Kf2 {[%emt 0:00:01]} Ke5 {[%emt 0:00:00]} 46. Ke3 {[%emt 0:00:01]} c4 {[%emt 0:00:00]} 47. Ke2 {[%emt 0:00:04]} Kf4 {[%emt 0:00:00]} 48. Rf1+ {[%emt 0:00:01]} Kg3 {[%emt 0:00:00]} 49. Kd1 {[%emt 0:00:01]} Kxh3 {[%emt 0:00:00]} 50. Rg1 {[%emt 0:00:02]} Kh2 {[%emt 0:00:00]} 51. Rf1 {[%emt 0:00:01]} Kg3 {[%emt 0:00:00]} 52. Rg1+ {[%emt 0:00:01]} Kf2 {[%emt 0:00:00]} 53. Rh1 {[%emt 0:00:01]} Ke3 {[%emt 0:00:00]} 54. Rf1 {[%emt 0:00:02]} Ke4 {[%emt 0:00:00]} 55. Rf2 {[%emt 0:00:02]} a5 {[%emt 0:00:00]} 56. Rf5 {[%emt 0:00:02]} b4 {[%emt 0:00:00]} 57. Rxa5 {[%emt 0:00:01]} bxc3 58. bxc3 {[%emt 0:00:01]} Kd3 {[%emt 0:00:32]} 59. Rd5+ {[%emt 0:00:13]} 1/2-1/2

[Event "Austria Championship Blitz 2024"]
[Site "Innsbruck"]
[Date "2024.06.01"]
[Round "5.10"]
[White "Horvath, Reka"]
[Black "Wetscher, Wolfgang"]
[Result "0-1"]
[ECO "A04"]
[WhiteElo "2009"]
[BlackElo "1937"]
[Annotator "RC"]
[PlyCount "122"]
[EventDate "2024.06.01"]
[EventType "swiss"]
[EventCountry "AUT"]
[SourceTitle "playchess.com"]
[Source "ChessBase"]
[SourceQuality "1"]
[TimeControl "180+2"]

1. Nf3 {[%emt 0:00:01]} c6 {[%emt 0:00:00]} 2. d4 {[%emt 0:00:04]} Qc7 {[%emt 0:00:01]} 3. e4 {[%emt 0:00:04]} d6 {[%emt 0:00:00]} 4. Bc4 {[%emt 0:00:09]} e6 {[%emt 0:00:01]} 5. O-O {[%emt 0:00:08]} Nd7 {[%emt 0:00:01]} 6. Bb3 {[%emt 0:00:01]} Ngf6 {[%emt 0:00:02]} 7. d5 {[%emt 0:00:17]} cxd5 {[%emt 0:00:16]} 8. exd5 {[%emt 0:00:03]} e5 {[%emt 0:00:02]} 9. Nc3 {[%emt 0:00:05]} a6 {[%emt 0:00:04]} 10. a4 {[%emt 0:00:07]} Be7 {[%emt 0:00:06]} 11. Re1 {[%emt 0:00:15]} O-O {[%emt 0:00:04]} 12. a5 {[%emt 0:00:11]} Nc5 {[%emt 0:00:01]} 13. Ba2 {[%emt 0:00:20]} Bg4 {[%emt 0:00:02]} 14. h3 {[%emt 0:00:08]} Bh5 {[%emt 0:00:05]} 15. b4 {[%emt 0:00:14]} Ncd7 {[%emt 0:00:11]} 16. Bb2 {[%emt 0:00:01]} Rfe8 {[%emt 0:00:11]} 17. Qd3 {[%emt 0:00:10]} Bg6 {[%emt 0:00:08]} 18. Qe2 {[%emt 0:00:04]} h6 {[%emt 0:00:08]} 19. Rad1 {[%emt 0:00:12]} Rac8 {[%emt 0:00:02]} 20. Nh4 {[%emt 0:00:07]} Bh7 {[%emt 0:00:02]} 21. Qf3 {[%emt 0:00:08]} Nf8 {[%emt 0:00:24]} 22. Nf5 {[%emt 0:00:02]} Bxf5 {[%emt 0:00:01]} 23. Qxf5 {[%emt 0:00:01]} Qd7 {[%emt 0:00:11]} 24. Qf3 {[%emt 0:00:08]} Ng6 {[%emt 0:00:03]} 25. Rd2 {[%emt 0:00:06]} Rc7 {[%emt 0:00:07]} 26. Ne4 {[%emt 0:00:09]} Nxe4 {[%emt 0:00:07]} 27. Qxe4 {[%emt 0:00:01]} Rec8 {[%emt 0:00:18]} 28. c4 {[%emt 0:00:01]} f5 {[%emt 0:00:11]} 29. Qe2 {[%emt 0:00:03]} Bf6 {[%emt 0:00:05]} 30. c5 {[%emt 0:00:03]} Kh7 {[%emt 0:00:08]} 31. Rc1 {[%emt 0:00:04]} dxc5 {[%emt 0:00:06]} 32. bxc5 {[%emt 0:00:03]} Rxc5 {[%emt 0:00:03]} 33. Rxc5 {[%emt 0:00:07]} Rxc5 {[%emt 0:00:01]} 34. Ba3 {[%emt 0:00:01]} Rc8 {[%emt 0:00:12]} 35. d6 {[%emt 0:00:04]} Nf4 {[%emt 0:00:08]} 36. Qd1 {[%emt 0:00:11]} Ne6 {[%emt 0:00:05]} 37. Qb1 {[%emt 0:00:04]} Nd4 {[%emt 0:00:06]} 38. Rb2 {[%emt 0:00:05]} Rb8 {[%emt 0:00:12]} 39. Bc5 {[%emt 0:00:03]} Nc6 {[%emt 0:00:07]} 40. Ba3 {[%emt 0:00:05]} Nxa5 {[%emt 0:00:20]} 41. Qe1 {[%emt 0:00:05]} Nc6 {[%emt 0:00:00]} 42. Qc3 {[%emt 0:00:03]} e4 {[%emt 0:00:00]} 43. Qc5 {[%emt 0:00:02]} Bxb2 44. Bxb2 {[%emt 0:00:01]} b6 {[%emt 0:00:00]} 45. Qc3 {[%emt 0:00:02]} b5 {[%emt 0:00:02]} 46. Bd5 {[%emt 0:00:02]} Rc8 {[%emt 0:00:01]} 47. Qe1 {[%emt 0:00:03]} Nb4 {[%emt 0:00:03]} 48. Bb3 {[%emt 0:00:02]} Nd3 {[%emt 0:00:02]} 49. Qd2 {[%emt 0:00:03]} Nxb2 {[%emt 0:00:01]} 50. Qxb2 {[%emt 0:00:01]} Qxd6 {[%emt 0:00:04]} 51. Qe2 {[%emt 0:00:03]} Rd8 {[%emt 0:00:01]} 52. Qh5 {[%emt 0:00:02]} Qg6 {[%emt 0:00:03]} 53. Qe2 {[%emt 0:00:02]} Qf6 {[%emt 0:00:02]} 54. g3 {[%emt 0:00:01]} Rf8 {[%emt 0:00:03]} 55. Qe3 {[%emt 0:00:02]} Qa1+ {[%emt 0:00:02]} 56. Kh2 {[%emt 0:00:01]} Qe5 {[%emt 0:00:02]} 57. Qb6 {[%emt 0:00:01]} Qf6 {[%emt 0:00:02]} 58. Qc7 {[%emt 0:00:02]} b4 {[%emt 0:00:03]} 59. Qb7 {[%emt 0:00:02]} a5 {[%emt 0:00:01]} 60. Ba4 {[%emt 0:00:01]} h5 {[%emt 0:00:01]} 61. Qa6 {[%emt 0:00:03]} Qxa6 {[%emt 0:00:01]} 0-1

[Event "Austria Championship Blitz 2024"]
[Site "Innsbruck"]
[Date "2024.06.01"]
[Round "5.11"]
[White "Wohlfahrt, Herbert"]
[Black "Guba, Viktor"]
[Result "1-0"]
[ECO "E60"]
[WhiteElo "2328"]
[BlackElo "1891"]
[Annotator "RC"]
[PlyCount "55"]
[EventDate "2024.06.01"]
[EventType "swiss"]
[EventCountry "AUT"]
[SourceTitle "playchess.com"]
[Source "ChessBase"]
[SourceQuality "1"]
[TimeControl "180+2"]

1. Nf3 {[%emt 0:00:01]} Nf6 {[%emt 0:00:01]} 2. c4 {[%emt 0:00:00]} g6 {[%emt 0:00:05]} 3. b3 {[%emt 0:00:02]} Bg7 {[%emt 0:00:01]} 4. Bb2 {[%emt 0:00:00]} O-O {[%emt 0:00:02]} 5. g3 {[%emt 0:00:01]} d6 {[%emt 0:00:01]} 6. d4 {[%emt 0:00:01]} c5 {[%emt 0:00:03]} 7. Bg2 {[%emt 0:00:03]} Nfd7 {[%emt 0:00:13]} 8. Nc3 {[%emt 0:00:12]} Nc6 {[%emt 0:00:06]} 9. d5 {[%emt 0:00:21]} Nce5 {[%emt 0:00:07]} 10. Nd2 {[%emt 0:00:04]} a6 {[%emt 0:00:24]} 11. a4 {[%emt 0:00:04]} f5 {[%emt 0:00:17]} 12. O-O {[%emt 0:00:07]} Nf6 {[%emt 0:00:06]} 13. h3 {[%emt 0:00:05]} Bd7 {[%emt 0:00:07]} 14. Qc2 {[%emt 0:00:03]} Rb8 {[%emt 0:00:04]} 15. f4 {[%emt 0:00:04]} Nf7 {[%emt 0:00:01]} 16. e4 {[%emt 0:00:01]} fxe4 {[%emt 0:00:06]} 17. Ndxe4 {[%emt 0:00:11]} Qc8 {[%emt 0:00:21]} 18. Kh2 {[%emt 0:00:09]} h5 {[%emt 0:00:07]} 19. Nxf6+ {[%emt 0:00:12]} exf6 {[%emt 0:00:18]} 20. Qxg6 {[%emt 0:00:03]} Bf5 {[%emt 0:00:21]} 21. Qxh5 {[%emt 0:00:02]} Bc2 {[%emt 0:00:01]} 22. Ne4 {[%emt 0:00:17]} Nd8 {[%emt 0:00:14]} 23. Qg6 {[%emt 0:00:17]} Bxe4 {[%emt 0:00:17]} 24. Bxe4 {[%emt 0:00:05]} Rf7 {[%emt 0:00:12]} 25. Bf5 {[%emt 0:00:08]} Qc7 {[%emt 0:00:01]} 26. Rae1 {[%emt 0:00:02]} Kf8 {[%emt 0:00:06]} 27. h4 {[%emt 0:00:12]} b5 {[%emt 0:00:05]} 28. h5 {[%emt 0:00:15]} 1-0